[Event "Early-Titled-Tuesday-Blitz-February-13-2024"]
[Site "Chess.com"]
[Date "2024.02.13"]
[Round "10"]
[White "Barbix1"]
[Black "RaugintaBulba"]
[Result "0-1"]
[WhiteElo "2284"]
[BlackElo "2430"]
[TimeControl "180+1"]
[EndTime "10:00:02 PST"]
[Termination "RaugintaBulba won on time"]

1. d4 {[%clk 0:03:00.9]} 1... e5 {[%clk 0:02:52.5]} 2. dxe5 {[%clk 0:02:59.5]}
2... Nc6 {[%clk 0:02:52.3]} 3. Nf3 {[%clk 0:02:51.4]} 3... Bc5 {[%clk
0:02:49.3]} 4. Bf4 {[%clk 0:02:46.3]} 4... Nge7 {[%clk 0:02:45.6]} 5. e3 {[%clk
0:02:44.5]} 5... Ng6 {[%clk 0:02:42.3]} 6. Bg3 {[%clk 0:02:39.7]} 6... O-O
{[%clk 0:02:41.1]} 7. Bc4 {[%clk 0:02:32.4]} 7... Re8 {[%clk 0:02:39.8]} 8.
Bxf7+ {[%clk 0:02:17.2]} 8... Kxf7 {[%clk 0:02:39.7]} 9. Qd5+ {[%clk 0:02:17.5]}
9... Kf8 {[%clk 0:02:40.4]} 10. Qxc5+ {[%clk 0:02:17.1]} 10... Kg8 {[%clk
0:02:41.1]} 11. O-O {[%clk 0:02:12.5]} 11... Ncxe5 {[%clk 0:02:22.3]} 12. Bxe5
{[%clk 0:01:23.9]} 12... Nxe5 {[%clk 0:02:21.4]} 13. Nxe5 {[%clk 0:01:03]} 13...
d6 {[%clk 0:02:21.8]} 14. Qd5+ {[%clk 0:00:42.1]} 14... Be6 {[%clk 0:02:22.3]}
15. Qxb7 {[%clk 0:00:42.4]} 15... dxe5 {[%clk 0:02:21.2]} 16. Nc3 {[%clk
0:00:29.5]} 16... Rb8 {[%clk 0:02:18.6]} 17. Qxa7 {[%clk 0:00:29.7]} 17... Rxb2
{[%clk 0:02:16.3]} 18. Rfd1 {[%clk 0:00:29.1]} 18... Qg5 {[%clk 0:02:08.8]} 19.
Qxc7 {[%clk 0:00:20.7]} 19... Rb4 {[%clk 0:02:08.1]} 20. Qc6 {[%clk 0:00:18.4]}
20... Bf7 {[%clk 0:02:05.3]} 21. Ne4 {[%clk 0:00:12.5]} 21... Qh5 {[%clk
0:01:43.6]} 22. Nd6 {[%clk 0:00:11.6]} 22... Rf8 {[%clk 0:01:44.3]} 23. Nxf7
{[%clk 0:00:11.3]} 23... Qxf7 {[%clk 0:01:40.2]} 24. Rd2 {[%clk 0:00:11.2]}
24... Qxa2 {[%clk 0:01:34.9]} 25. Rad1 {[%clk 0:00:04.3]} 25... Qc4 {[%clk
0:01:28.5]} 26. Qxc4+ {[%clk 0:00:03.1]} 26... Rxc4 {[%clk 0:01:29.4]} 27. Rc1
{[%clk 0:00:03.5]} 27... Rfc8 {[%clk 0:01:29.1]} 28. Kf1 {[%clk 0:00:03.4]}
28... Kf7 {[%clk 0:01:29.7]} 29. Ke2 {[%clk 0:00:03.7]} 29... Ke6 {[%clk
0:01:30.4]} 30. Kd1 {[%clk 0:00:03.3]} 30... R4c6 {[%clk 0:01:23.4]} 31. Rd3
{[%clk 0:00:03.4]} 31... Rf8 {[%clk 0:01:18.3]} 32. Rd2 {[%clk 0:00:03.3]} 32...
Rfc8 {[%clk 0:01:18.7]} 33. e4 {[%clk 0:00:03.4]} 33... Rc4 {[%clk 0:01:18]} 34.
f3 {[%clk 0:00:03.6]} 34... g5 {[%clk 0:01:17.3]} 35. Rd3 {[%clk 0:00:03.8]}
35... R4c6 {[%clk 0:01:18]} 36. c3 {[%clk 0:00:03.7]} 36... h5 {[%clk
0:01:18.7]} 37. Kd2 {[%clk 0:00:03.9]} 37... Rb8 {[%clk 0:01:19.2]} 38. Rc2
{[%clk 0:00:03.9]} 38... Rb1 {[%clk 0:01:19.1]} 39. Rd5 {[%clk 0:00:03.6]} 39...
Rg1 {[%clk 0:01:14.6]} 40. Ke3 {[%clk 0:00:03.4]} 40... Re1+ {[%clk 0:01:04.8]}
41. Kf2 {[%clk 0:00:03.5]} 41... Rb1 {[%clk 0:01:05.7]} 42. c4 {[%clk 0:00:04]}
42... Rb8 {[%clk 0:01:01.3]} 43. c5 {[%clk 0:00:04.4]} 43... Rbc8 {[%clk
0:01:02.2]} 44. Ke2 {[%clk 0:00:04]} 44... Rb8 {[%clk 0:01:01.8]} 45. Kd3 {[%clk
0:00:04.3]} 45... Ra8 {[%clk 0:01:01.4]} 46. Rb2 {[%clk 0:00:04.5]} 46... Ra3+
{[%clk 0:01:01.5]} 47. Kc2 {[%clk 0:00:03.7]} 47... Ra5 {[%clk 0:01:00.1]} 48.
Rb6 {[%clk 0:00:02.5]} 48... Rxc5+ {[%clk 0:01:00.7]} 49. Rxc5 {[%clk
0:00:02.6]} 49... Rxb6 {[%clk 0:01:01.6]} 50. Rc8 {[%clk 0:00:02.5]} 50... Kf6
{[%clk 0:01:00.7]} 51. Rf8+ {[%clk 0:00:02.7]} 51... Kg6 {[%clk 0:00:57.7]} 52.
Re8 {[%clk 0:00:03.1]} 52... Kf6 {[%clk 0:00:57.7]} 53. Kc3 {[%clk 0:00:03.3]}
53... Ra6 {[%clk 0:00:54.9]} 54. Kc4 {[%clk 0:00:02.9]} 54... Ra2 {[%clk
0:00:55.2]} 55. Kd5 {[%clk 0:00:03.3]} 55... Rd2+ {[%clk 0:00:55.2]} 56. Kc6
{[%clk 0:00:03.2]} 56... Rxg2 {[%clk 0:00:56]} 57. Rf8+ {[%clk 0:00:02.7]} 57...
Kg6 {[%clk 0:00:52.8]} 58. Rf5 {[%clk 0:00:02.7]} 58... Rxh2 {[%clk 0:00:51.5]}
59. Rxe5 {[%clk 0:00:03.2]} 59... h4 {[%clk 0:00:51.6]} 60. Re6+ {[%clk
0:00:03.3]} 60... Kf7 {[%clk 0:00:51.7]} 61. Rh6 {[%clk 0:00:03.3]} 61... Rf2
{[%clk 0:00:52.2]} 62. e5 {[%clk 0:00:03.5]} 62... Rxf3 {[%clk 0:00:52.4]} 63.
e6+ {[%clk 0:00:03.7]} 63... Ke7 {[%clk 0:00:51]} 64. Kd5 {[%clk 0:00:04.4]}
64... Rf5+ {[%clk 0:00:49.9]} 65. Ke4 {[%clk 0:00:04.4]} 65... Rf6 {[%clk
0:00:50.6]} 66. Rh7+ {[%clk 0:00:03.6]} 66... Kxe6 {[%clk 0:00:50.6]} 67. Rg7
{[%clk 0:00:04.4]} 67... Rf4+ {[%clk 0:00:50.2]} 68. Ke3 {[%clk 0:00:04.5]}
68... Kf5 {[%clk 0:00:51]} 69. Rf7+ {[%clk 0:00:04.7]} 69... Kg4 {[%clk
0:00:51.7]} 70. Rg7 {[%clk 0:00:05.1]} 70... h3 {[%clk 0:00:50.9]} 71. Rh7
{[%clk 0:00:05.3]} 71... Rf3+ {[%clk 0:00:50.1]} 72. Ke2 {[%clk 0:00:05.4]}
72... Kg3 {[%clk 0:00:50]} 0-1

[Event "Early-Titled-Tuesday-Blitz-February-13-2024"]
[Site "Chess.com"]
[Date "2024.02.13"]
[Round "10"]
[White "PepeCuenca"]
[Black "Aash20"]
[Result "1-0"]
[WhiteElo "2682"]
[BlackElo "2455"]
[TimeControl "180+1"]
[EndTime "10:00:03 PST"]
[Termination "PepeCuenca won by resignation"]

1. c4 {[%clk 0:02:51.7]} 1... c5 {[%clk 0:02:57.3]} 2. Nf3 {[%clk 0:02:51.1]}
2... Nc6 {[%clk 0:02:57]} 3. d4 {[%clk 0:02:51.4]} 3... cxd4 {[%clk 0:02:56.5]}
4. Nxd4 {[%clk 0:02:51.6]} 4... g6 {[%clk 0:02:56]} 5. e4 {[%clk 0:02:51.8]}
5... Bg7 {[%clk 0:02:55.4]} 6. Be3 {[%clk 0:02:51.7]} 6... d6 {[%clk 0:02:51.8]}
7. Nc3 {[%clk 0:02:50.9]} 7... Nf6 {[%clk 0:02:51.3]} 8. Be2 {[%clk 0:02:51.1]}
8... O-O {[%clk 0:02:50.7]} 9. O-O {[%clk 0:02:51.2]} 9... Nxd4 {[%clk
0:02:48.1]} 10. Bxd4 {[%clk 0:02:50.6]} 10... Be6 {[%clk 0:02:47.3]} 11. Qd3
{[%clk 0:02:50.1]} 11... a6 {[%clk 0:02:47]} 12. b3 {[%clk 0:02:44.6]} 12... Rc8
{[%clk 0:02:45.9]} 13. f4 {[%clk 0:02:41.4]} 13... Qa5 {[%clk 0:02:35.4]} 14. a4
{[%clk 0:02:16.1]} 14... Rfd8 {[%clk 0:02:04.5]} 15. Qe3 {[%clk 0:02:00.7]}
15... Qb4 {[%clk 0:01:55.1]} 16. Rab1 {[%clk 0:01:28.7]} 16... Ng4 {[%clk
0:01:30.1]} 17. Bxg4 {[%clk 0:01:27.3]} 17... Bxd4 {[%clk 0:01:28.7]} 18. Qxd4
{[%clk 0:01:26]} 18... Bxg4 {[%clk 0:01:27.9]} 19. Nd5 {[%clk 0:01:19.2]} 19...
Qc5 {[%clk 0:01:25.6]} 20. Nxe7+ {[%clk 0:01:16]} 20... Kf8 {[%clk 0:01:25.2]}
21. Qxc5 {[%clk 0:01:16.5]} 21... Rxc5 {[%clk 0:01:24.4]} 22. Nd5 {[%clk
0:01:16.9]} 22... Be6 {[%clk 0:01:20.4]} 23. Nc3 {[%clk 0:01:14.1]} 23... f5
{[%clk 0:01:14.6]} 24. Rbd1 {[%clk 0:01:10.9]} 24... b5 {[%clk 0:01:02.3]} 25.
axb5 {[%clk 0:01:07.3]} 25... axb5 {[%clk 0:01:01.9]} 26. Nxb5 {[%clk
0:01:00.6]} 26... fxe4 {[%clk 0:00:46.1]} 27. Rxd6 {[%clk 0:01:00.1]} 27... Rxd6
{[%clk 0:00:45.3]} 28. Nxd6 {[%clk 0:01:00.2]} 28... Bf5 {[%clk 0:00:43]} 29.
Re1 {[%clk 0:00:57]} 29... Rc6 {[%clk 0:00:39.8]} 30. Nb5 {[%clk 0:00:43.4]}
30... Rb6 {[%clk 0:00:35.2]} 31. Kf2 {[%clk 0:00:39.5]} 31... Ke7 {[%clk
0:00:32.2]} 32. h3 {[%clk 0:00:37.9]} 32... h5 {[%clk 0:00:31.5]} 33. g4 {[%clk
0:00:37.2]} 33... hxg4 {[%clk 0:00:31.1]} 34. hxg4 {[%clk 0:00:38.1]} 34... Bxg4
{[%clk 0:00:31.3]} 35. Rxe4+ {[%clk 0:00:38.8]} 35... Kf6 {[%clk 0:00:29.5]} 36.
Rd4 {[%clk 0:00:28.8]} 36... Rb8 {[%clk 0:00:25.9]} 37. Rd6+ {[%clk 0:00:26.7]}
37... Kf5 {[%clk 0:00:24.7]} 38. Kg3 {[%clk 0:00:22.5]} 38... Bh5 {[%clk
0:00:22.4]} 39. Nd4+ {[%clk 0:00:20.4]} 39... Ke4 {[%clk 0:00:21.9]} 40. c5
{[%clk 0:00:19.6]} 40... Rb4 {[%clk 0:00:20.2]} 41. c6 {[%clk 0:00:17.8]} 41...
g5 {[%clk 0:00:14.3]} 42. c7 {[%clk 0:00:06.7]} 42... gxf4+ {[%clk 0:00:13.8]}
43. Kh4 {[%clk 0:00:07.3]} 43... Rxd4 {[%clk 0:00:10.1]} 44. Rxd4+ {[%clk
0:00:07]} 44... Kxd4 {[%clk 0:00:11]} 45. c8=Q {[%clk 0:00:06.7]} 45... f3
{[%clk 0:00:11.9]} 46. Kxh5 {[%clk 0:00:06.3]} 46... Ke3 {[%clk 0:00:12.2]} 47.
Qe6+ {[%clk 0:00:06.2]} 47... Kd2 {[%clk 0:00:11.9]} 48. Qd5+ {[%clk 0:00:06.6]}
48... Ke2 {[%clk 0:00:11.9]} 49. Qe4+ {[%clk 0:00:07]} 49... Kf2 {[%clk
0:00:10.9]} 50. Kg4 {[%clk 0:00:07.2]} 50... Kg1 {[%clk 0:00:11.4]} 51. Qxf3
{[%clk 0:00:07.2]} 51... Kh2 {[%clk 0:00:12.3]} 52. Qd3 {[%clk 0:00:05.9]} 52...
Kg1 {[%clk 0:00:13.2]} 53. Qd2 {[%clk 0:00:05.9]} 1-0

[Event "Early-Titled-Tuesday-Blitz-February-13-2024"]
[Site "Chess.com"]
[Date "2024.02.13"]
[Round "10"]
[White "Adar_07"]
[Black "edgarhay012"]
[Result "1/2-1/2"]
[WhiteElo "2802"]
[BlackElo "2640"]
[TimeControl "180+1"]
[EndTime "10:00:07 PST"]
[Termination "Game drawn - insufficient material"]

1. e4 {[%clk 0:03:00.9]} 1... c5 {[%clk 0:02:56.2]} 2. Nf3 {[%clk 0:03:00.8]}
2... e6 {[%clk 0:02:56.5]} 3. d4 {[%clk 0:03:00.8]} 3... cxd4 {[%clk 0:02:57.4]}
4. Nxd4 {[%clk 0:03:01.7]} 4... Nf6 {[%clk 0:02:57.9]} 5. Nc3 {[%clk 0:03:01.5]}
5... Nc6 {[%clk 0:02:58.6]} 6. Ndb5 {[%clk 0:03:02.2]} 6... Bb4 {[%clk
0:02:58.2]} 7. a3 {[%clk 0:03:02.9]} 7... Bxc3+ {[%clk 0:02:58]} 8. Nxc3 {[%clk
0:03:03.8]} 8... d5 {[%clk 0:02:58.9]} 9. exd5 {[%clk 0:03:04.4]} 9... exd5
{[%clk 0:02:59.8]} 10. Bd3 {[%clk 0:03:02.3]} 10... O-O {[%clk 0:02:59.9]} 11.
O-O {[%clk 0:03:01.4]} 11... h6 {[%clk 0:03:00.5]} 12. b4 {[%clk 0:02:45.5]}
12... Re8 {[%clk 0:02:59.8]} 13. Re1 {[%clk 0:02:41]} 13... Bg4 {[%clk
0:02:54.8]} 14. Rxe8+ {[%clk 0:02:40.1]} 14... Qxe8 {[%clk 0:02:55.7]} 15. f3
{[%clk 0:02:40.5]} 15... Be6 {[%clk 0:02:53.1]} 16. Nb5 {[%clk 0:02:39.3]} 16...
Qd8 {[%clk 0:02:51.4]} 17. Be3 {[%clk 0:02:29.4]} 17... d4 {[%clk 0:02:51.6]}
18. Bf4 {[%clk 0:02:13.2]} 18... Nd5 {[%clk 0:02:49.3]} 19. Qd2 {[%clk
0:02:06.6]} 19... a6 {[%clk 0:00:54.8]} 20. Nd6 {[%clk 0:02:06]} 20... Nxf4
{[%clk 0:00:55.3]} 21. Qxf4 {[%clk 0:02:06.6]} 21... Qc7 {[%clk 0:00:55.8]} 22.
Qg3 {[%clk 0:02:04.6]} 22... Rd8 {[%clk 0:00:55.8]} 23. Ne4 {[%clk 0:02:04.5]}
23... Qxg3 {[%clk 0:00:56.3]} 24. hxg3 {[%clk 0:02:05.4]} 24... Ne5 {[%clk
0:00:56.6]} 25. Bf1 {[%clk 0:02:03.2]} 25... Rc8 {[%clk 0:00:56.7]} 26. Nc5
{[%clk 0:02:03.2]} 26... Bd5 {[%clk 0:00:55.9]} 27. Rd1 {[%clk 0:02:01.9]} 27...
b6 {[%clk 0:00:54]} 28. Nxa6 {[%clk 0:02:00.1]} 28... Rxc2 {[%clk 0:00:51.6]}
29. Rxd4 {[%clk 0:01:52.4]} 29... Bc4 {[%clk 0:00:39.2]} 30. Rd8+ {[%clk
0:01:48.6]} 30... Kh7 {[%clk 0:00:38.3]} 31. Bxc4 {[%clk 0:01:44.6]} 31... Nxc4
{[%clk 0:00:39.2]} 32. Rd3 {[%clk 0:01:43.2]} 32... Ra2 {[%clk 0:00:38.8]} 33.
Nc7 {[%clk 0:01:42.1]} 33... Nxa3 {[%clk 0:00:36.2]} 34. Rd7 {[%clk 0:01:27.1]}
34... Nc4 {[%clk 0:00:32.1]} 35. Rxf7 {[%clk 0:01:25.8]} 35... Ne3 {[%clk
0:00:32.1]} 36. Kh2 {[%clk 0:01:22.9]} 36... Rxg2+ {[%clk 0:00:31.5]} 37. Kh3
{[%clk 0:01:23.2]} 37... Rg1 {[%clk 0:00:31]} 38. g4 {[%clk 0:01:16.3]} 38...
Kg6 {[%clk 0:00:24.1]} 39. Re7 {[%clk 0:01:13.7]} 39... Nc4 {[%clk 0:00:20.6]}
40. Ne8 {[%clk 0:01:10.5]} 40... Kg5 {[%clk 0:00:19.6]} 41. Rxg7+ {[%clk
0:01:10.6]} 41... Kf4 {[%clk 0:00:19.8]} 42. Rf7+ {[%clk 0:01:11.3]} 42... Ke3
{[%clk 0:00:20.3]} 43. Nf6 {[%clk 0:01:03.3]} 43... Ne5 {[%clk 0:00:18.7]} 44.
Re7 {[%clk 0:00:59.5]} 44... Kxf3 {[%clk 0:00:19.1]} 45. Kh2 {[%clk 0:00:58.3]}
45... Rg2+ {[%clk 0:00:19.6]} 46. Kh1 {[%clk 0:00:58.6]} 46... Re2 {[%clk
0:00:19.8]} 47. Re6 {[%clk 0:00:46.1]} 47... Kg3 {[%clk 0:00:15.9]} 48. Nh5+
{[%clk 0:00:45.5]} 48... Kxg4 {[%clk 0:00:15.9]} 49. Rxh6 {[%clk 0:00:38.3]}
49... Nf3 {[%clk 0:00:14.7]} 50. Ng7 {[%clk 0:00:38.2]} 50... Kg3 {[%clk
0:00:11.1]} 51. Rg6+ {[%clk 0:00:35.1]} 51... Kh3 {[%clk 0:00:08.9]} 52. Rh6+
{[%clk 0:00:33]} 52... Nh4 {[%clk 0:00:08]} 53. Kg1 {[%clk 0:00:31.5]} 53... Kg3
{[%clk 0:00:08.3]} 54. Kf1 {[%clk 0:00:25]} 54... Rf2+ {[%clk 0:00:08.6]} 55.
Ke1 {[%clk 0:00:25.3]} 55... Ng2+ {[%clk 0:00:08.9]} 56. Kd1 {[%clk 0:00:25.1]}
56... Ne3+ {[%clk 0:00:09.5]} 57. Kc1 {[%clk 0:00:25.6]} 57... Nd5 {[%clk
0:00:06.5]} 58. Rd6 {[%clk 0:00:20.9]} 58... Nxb4 {[%clk 0:00:06.1]} 59. Rg6+
{[%clk 0:00:21]} 59... Kh2 {[%clk 0:00:05.8]} 60. Rxb6 {[%clk 0:00:20.7]} 60...
Nd3+ {[%clk 0:00:06.3]} 61. Kd1 {[%clk 0:00:21.1]} 61... Nb2+ {[%clk 0:00:06.3]}
62. Kc1 {[%clk 0:00:20.6]} 62... Nd3+ {[%clk 0:00:07]} 63. Kb1 {[%clk
0:00:21.3]} 63... Rb2+ {[%clk 0:00:06.8]} 64. Rxb2+ {[%clk 0:00:20.1]} 64...
Nxb2 {[%clk 0:00:07.7]} 1/2-1/2

[Event "Early-Titled-Tuesday-Blitz-February-13-2024"]
[Site "Chess.com"]
[Date "2024.02.13"]
[Round "10"]
[White "NM_Antelacus"]
[Black "Matols"]
[Result "1/2-1/2"]
[WhiteElo "2252"]
[BlackElo "2381"]
[TimeControl "180+1"]
[EndTime "10:00:08 PST"]
[Termination "Game drawn by repetition"]

1. e4 {[%clk 0:03:00.9]} 1... c6 {[%clk 0:02:59.9]} 2. d4 {[%clk 0:02:59.9]}
2... d5 {[%clk 0:03:00.4]} 3. e5 {[%clk 0:03:00.1]} 3... c5 {[%clk 0:03:00.4]}
4. dxc5 {[%clk 0:02:58.9]} 4... e6 {[%clk 0:03:01]} 5. Be3 {[%clk 0:02:57.8]}
5... Nd7 {[%clk 0:02:57.8]} 6. Nf3 {[%clk 0:02:56.4]} 6... Nxc5 {[%clk
0:02:42.6]} 7. Bd3 {[%clk 0:02:52]} 7... Nxd3+ {[%clk 0:02:41.6]} 8. cxd3 {[%clk
0:02:51.7]} 8... Ne7 {[%clk 0:02:32]} 9. O-O {[%clk 0:02:50.9]} 9... Nf5 {[%clk
0:02:31.2]} 10. Bf4 {[%clk 0:02:47.7]} 10... Be7 {[%clk 0:02:28.8]} 11. Nc3
{[%clk 0:02:37.4]} 11... O-O {[%clk 0:02:26.6]} 12. Rc1 {[%clk 0:02:33.6]} 12...
Bd7 {[%clk 0:02:25.6]} 13. Qe2 {[%clk 0:02:30.4]} 13... Rc8 {[%clk 0:02:22.8]}
14. h3 {[%clk 0:02:21.5]} 14... Qb6 {[%clk 0:02:11.4]} 15. g4 {[%clk 0:02:18]}
15... Nd4 {[%clk 0:02:07]} 16. Nxd4 {[%clk 0:02:17.7]} 16... Qxd4 {[%clk
0:02:07.9]} 17. Qe3 {[%clk 0:02:13]} 17... Qxe3 {[%clk 0:02:02.4]} 18. fxe3
{[%clk 0:02:07.7]} 18... f6 {[%clk 0:01:59.1]} 19. d4 {[%clk 0:01:59]} 19... Bb4
{[%clk 0:01:47.7]} 20. Rc2 {[%clk 0:01:46.9]} 20... Bxc3 {[%clk 0:01:43.5]} 21.
Rxc3 {[%clk 0:01:44.8]} 21... Rxc3 {[%clk 0:01:40.7]} 22. bxc3 {[%clk
0:01:45.7]} 22... Rc8 {[%clk 0:01:39]} 23. Rc1 {[%clk 0:01:43.9]} 23... Kf7
{[%clk 0:01:38.1]} 24. Kf2 {[%clk 0:01:42]} 24... Bb5 {[%clk 0:01:37]} 25. Ke1
{[%clk 0:01:40.2]} 25... Bd3 {[%clk 0:01:36.5]} 26. Kd2 {[%clk 0:01:39.9]} 26...
Be4 {[%clk 0:01:36]} 27. exf6 {[%clk 0:01:25.9]} 27... gxf6 {[%clk 0:01:35.4]}
28. Bd6 {[%clk 0:01:25.7]} 28... Rc6 {[%clk 0:01:33.4]} 29. Bc5 {[%clk 0:01:24]}
29... b6 {[%clk 0:01:24.8]} 30. Bb4 {[%clk 0:01:19.9]} 30... Kg6 {[%clk
0:01:15.6]} 31. h4 {[%clk 0:01:16.8]} 31... h5 {[%clk 0:01:12.4]} 32. Rg1 {[%clk
0:01:09.2]} 32... hxg4 {[%clk 0:00:57.9]} 33. Rxg4+ {[%clk 0:01:08.5]} 33... Kf7
{[%clk 0:00:58.1]} 34. h5 {[%clk 0:00:59.9]} 34... Rc8 {[%clk 0:00:57.6]} 35.
Bd6 {[%clk 0:00:52]} 35... Rh8 {[%clk 0:00:55.8]} 36. Rh4 {[%clk 0:00:50.9]}
36... Bf3 {[%clk 0:00:38.1]} 37. h6 {[%clk 0:00:50.1]} 37... Kg6 {[%clk
0:00:37.3]} 38. Bf4 {[%clk 0:00:49.9]} 38... Rh7 {[%clk 0:00:34.2]} 39. Kc2
{[%clk 0:00:48.7]} 39... Kf5 {[%clk 0:00:33.3]} 40. Kb3 {[%clk 0:00:46.7]} 40...
e5 {[%clk 0:00:32.9]} 41. dxe5 {[%clk 0:00:45.2]} 41... fxe5 {[%clk 0:00:33.8]}
42. Bh2 {[%clk 0:00:41.8]} 42... Kg5 {[%clk 0:00:27.1]} 43. Bg3 {[%clk
0:00:36.2]} 43... Rxh6 {[%clk 0:00:18]} 44. Rxh6 {[%clk 0:00:35.6]} 44... Kxh6
{[%clk 0:00:18.9]} 45. Bxe5 {[%clk 0:00:35.6]} 45... Kg6 {[%clk 0:00:18.2]} 46.
Kb4 {[%clk 0:00:34.5]} 46... Kf5 {[%clk 0:00:17]} 47. Bb8 {[%clk 0:00:32.3]}
47... a6 {[%clk 0:00:16.8]} 48. Ba7 {[%clk 0:00:31.5]} 48... b5 {[%clk
0:00:16.8]} 49. Bd4 {[%clk 0:00:30.9]} 49... Ke4 {[%clk 0:00:16.6]} 50. Ka5
{[%clk 0:00:30.9]} 50... Be2 {[%clk 0:00:15.3]} 51. Kb6 {[%clk 0:00:28.2]} 51...
Bc4 {[%clk 0:00:13.8]} 52. a3 {[%clk 0:00:27.2]} 52... Bd3 {[%clk 0:00:13.5]}
53. Kc5 {[%clk 0:00:26.6]} 53... Be2 {[%clk 0:00:13.1]} 54. Kb4 {[%clk
0:00:26.6]} 54... Bd3 {[%clk 0:00:12.6]} 55. Kc5 {[%clk 0:00:26.8]} 55... a5
{[%clk 0:00:10.9]} 56. Kb6 {[%clk 0:00:26]} 56... a4 {[%clk 0:00:10.7]} 57. Kc5
{[%clk 0:00:26.2]} 57... Be2 {[%clk 0:00:10.6]} 58. Kb4 {[%clk 0:00:26.4]} 58...
Bd3 {[%clk 0:00:09.2]} 59. Kc5 {[%clk 0:00:26.3]} 59... Bc4 {[%clk 0:00:09.1]}
60. Kb4 {[%clk 0:00:26.2]} 60... Kd3 {[%clk 0:00:09]} 61. Bc5 {[%clk 0:00:25.3]}
61... Kc2 {[%clk 0:00:08.5]} 62. Bd4 {[%clk 0:00:25.4]} 62... Kb2 {[%clk
0:00:08.4]} 63. Bc5 {[%clk 0:00:25.5]} 63... Ka2 {[%clk 0:00:08.7]} 64. Bd4
{[%clk 0:00:25.5]} 64... Bd3 {[%clk 0:00:08.8]} 65. Bc5 {[%clk 0:00:25.2]} 65...
Bc4 {[%clk 0:00:08.6]} 66. Bd4 {[%clk 0:00:25.3]} 66... Bd3 {[%clk 0:00:08.5]}
67. Bc5 {[%clk 0:00:25.3]} 67... Bc4 {[%clk 0:00:08.8]} 1/2-1/2